fUST/lending_fUST_20241231
["ID","MTS","AMOUNT","RATE_DAILY","PERIOD"]
[347288178,1735660258341,-500.0,0.00019726,3]
[347288179,1735660258351,-500.0,0.00019726,3]
[347288180,1735660258361,-500.0,0.00019726,3]
[347288181,1735660258371,-506.50517708,0.00019726,3]
[347288182,1735660258380,-500.0,0.00019726,3]
[347288183,1735660258393,-500.0,0.00019726,3]
[347288184,1735660258404,-500.0,0.00019726,3]
[347288185,1735660258414,-500.0,0.00019726,3]
[347288186,1735660258424,-500.0,0.00019726,3]
[347288187,1735660258434,-500.0,0.00019726,3]
[347288188,1735660258444,-500.0,0.00019726,3]
[347288189,1735660258454,-500.0,0.00019726,3]
[347288190,1735660258464,-500.0,0.00019726,3]
[347288191,1735660258474,-500.0,0.00019726,3]
[347288192,1735660258483,-500.0,0.00019726,3]
[347288193,1735660258493,-500.0,0.00019726,3]
[347288194,1735660258503,-508.62516281,0.00019726,3]
[347288195,1735660258512,-508.28414881,0.00019726,3]
[347288196,1735660258521,-500.0,0.00019726,3]
[347288197,1735660258531,-500.0,0.00019726,3]
[347288198,1735660258540,-500.0,0.00019726,3]
[347288199,1735660258549,-500.0,0.00019726,3]
[347288200,1735660258558,-466.29521368,0.00019726,3]
[347288201,1735660258567,-500.0,0.00019726,3]
[347288202,1735660258577,-500.0,0.00019726,3]
[347288203,1735660258586,-500.0,0.00019726,3]
[347288204,1735660258596,-500.0,0.00019726,3]
[347288205,1735660258605,-500.0,0.00019726,3]
[347288206,1735660258614,-500.0,0.00019726,3]
[347288207,1735660258623,-500.0,0.00019726,3]
[347288208,1735660258632,-500.0,0.00019726,3]
[347288209,1735660258641,-500.0,0.00019726,3]
[347288210,1735660258650,-319.99287936,0.00019726,3]
[347288211,1735660258659,-259.59170847,0.00019726,3]
[347288212,1735660258669,-500.0,0.00019726,3]
[347288213,1735660258678,-500.0,0.00019726,3]
[347288214,1735660258688,-500.0,0.00019726,3]
[347288215,1735660258697,-500.0,0.00019726,3]
[347288216,1735660258706,-500.0,0.00019726,3]
[347288217,1735660258715,-500.0,0.00019726,3]
[347288218,1735660258725,-500.0,0.00019726,3]
[347288219,1735660258734,-500.0,0.00019726,3]
[347288220,1735660258744,-500.0,0.00019726,3]
[347288221,1735660258754,-500.0,0.00019726,3]
[347288222,1735660258764,-245.67678878,0.00019726,3]
[347288223,1735660258774,-540.81,0.00019726,3]
[347288224,1735660258784,-500.0,0.00019726,3]
[347288225,1735660258793,-658.16,0.00019726,3]
[347288226,1735660258803,-500.0,0.00019726,3]
[347288227,1735660258812,-500.0,0.00019726,3]
[347288228,1735660258822,-500.0,0.00019726,3]
[347288229,1735660258831,-500.0,0.00019726,3]
[347288230,1735660258840,-500.0,0.00019726,3]
[347288231,1735660258850,-500.0,0.00019726,3]
[347288232,1735660258860,-500.0,0.00019726,3]
[347288233,1735660258870,-500.0,0.00019726,3]
[347288234,1735660258879,-500.0,0.00019726,3]
[347288235,1735660258892,-500.0,0.00019726,3]
[347288236,1735660258902,-500.0,0.00019726,3]
[347288237,1735660258911,-510.60339641,0.00019726,3]
[347288238,1735660258921,-500.0,0.00019726,3]
[347288239,1735660258930,-503.29262681,0.00019726,3]
[347288240,1735660258939,-188.0,0.00019726,2]
[347288241,1735660258949,-500.0,0.00019726,3]
[347288242,1735660259061,-500.0,0.00019726,3]
[347288243,1735660259072,-596.49,0.00019726,3]
[347288244,1735660259082,-500.0,0.00019726,3]
[347288245,1735660259091,-500.0,0.00019726,3]
[347288246,1735660259100,-500.0,0.00019726,3]
[347288247,1735660259110,-500.0,0.00019726,3]
[347288248,1735660259119,-179.79928752,0.00019726,3]
[347288249,1735660259128,-501.80529024,0.00019726,3]
[347288250,1735660259138,-500.0,0.00019726,3]
[347288251,1735660259148,-722.84,0.00019726,3]
[347288252,1735660259157,-500.0,0.00019726,3]
[347288253,1735660259166,-500.0,0.00019726,3]
[347288254,1735660259176,-949.54,0.00019726,3]
[347288255,1735660259185,-500.0,0.00019726,3]
[347288256,1735660259194,-500.0,0.00019726,3]
[347288257,1735660259203,-500.0,0.00019726,3]
[347288258,1735660259213,-500.0,0.00019726,3]
[347288259,1735660259222,-500.0,0.00019726,3]
[347288260,1735660259231,-500.0,0.00019726,3]
[347288261,1735660259239,-500.0,0.00019726,3]
[347288262,1735660259249,-500.0,0.00019726,3]
[347288263,1735660259259,-500.0,0.00019726,3]
[347288264,1735660259268,-450.69647483,0.00019726,3]
[347288265,1735660259278,-500.0,0.00019726,3]
[347288266,1735660259287,-500.0,0.00019726,3]
[347288267,1735660259296,-1056.73,0.00019726,3]
[347288268,1735660259306,-1114.86,0.00019726,3]
[347288269,1735660259315,-501.47448581,0.00019726,3]
[347288270,1735660259324,-1195.75,0.00019726,3]
[347288271,1735660259334,-500.0,0.00019726,3]
[347288272,1735660259343,-506.88906895,0.00019726,3]
[347288273,1735660259352,-500.0,0.00019726,3]
[347288274,1735660259362,-500.0,0.00019726,3]
[347288275,1735660259371,-1028.87,0.00019726,3]
[347288276,1735660259380,-502.70866287,0.00019726,3]
[347288277,1735660259391,-500.0,0.00019726,3]
[347288278,1735660259401,-500.0,0.00019726,3]
[347288279,1735660259410,-458.22297554,0.00019726,3]
[347288280,1735660259419,-500.0,0.00019726,3]
[347288281,1735660259429,-500.0,0.00019726,3]
[347288282,1735660259438,-500.0,0.00019726,3]
[347288283,1735660259447,-602.59777965,0.00019726,3]
[347288284,1735660259456,-500.0,0.00019726,3]
[347288285,1735660259465,-500.0,0.00019726,3]
[347288286,1735660259475,-500.0,0.00019726,3]
[347288287,1735660259484,-578.61,0.00019726,3]
[347288288,1735660259494,-530.55,0.00019726,3]
[347288289,1735660259503,-500.0,0.00019726,3]
[347288290,1735660259513,-500.0,0.00019726,3]
[347288291,1735660259522,-672.84,0.00019726,3]
[347288292,1735660259532,-500.0,0.00019726,3]
[347288293,1735660259541,-500.0,0.00019726,3]
[347288294,1735660259551,-1000.0,0.00019726,3]
[347288295,1735660259560,-500.0,0.00019726,3]
[347288296,1735660259569,-796.69,0.00019726,2]
[347288297,1735660259579,-500.0,0.00019726,3]
[347288298,1735660259588,-2174.18,0.00019726,3]
[347288299,1735660259597,-500.0,0.00019726,3]
[347288300,1735660259607,-500.0,0.00019726,3]
[347288301,1735660259616,-500.0,0.00019726,3]
[347288302,1735660259625,-534.94,0.00019726,3]
[347288303,1735660259636,-609.23,0.00019726,3]
[347288304,1735660259645,-520.83,0.00019726,3]
[347288305,1735660259654,-500.0,0.00019726,3]
[347288306,1735660259663,-219.28873151,0.00019726,3]
[347288307,1735660259672,-500.0,0.00019726,3]
[347288308,1735660259681,-830.54,0.00019726,3]
[347288309,1735660259690,-500.0,0.00019726,3]
[347288310,1735660259700,-500.0,0.00019726,3]
[347288311,1735660259709,-500.0,0.00019726,3]
[347288312,1735660259719,-505.37058005,0.00019726,3]
[347288313,1735660259728,-521.13378418,0.00019726,3]
[347288314,1735660259737,-500.0,0.00019726,3]
[347288315,1735660259746,-500.0,0.00019726,3]
[347288316,1735660259755,-510.74079421,0.00019726,3]
[347288317,1735660259764,-500.0,0.00019726,3]
[347288318,1735660259773,-500.0,0.00019726,3]
[347288319,1735660259782,-500.0,0.00019726,3]
[347288320,1735660259792,-1159.38,0.00019726,3]
[347288321,1735660259801,-500.42066067,0.00019726,3]
[347288322,1735660259810,-500.0,0.00019726,3]
[347288323,1735660259819,-679.02,0.00019726,3]
[347288324,1735660259828,-500.0,0.00019726,3]
[347288325,1735660259837,-500.0,0.00019726,3]
[347288326,1735660259846,-859.48,0.00019726,3]
[347288327,1735660259855,-500.0,0.00019726,3]
[347288328,1735660259865,-823.67,0.00019726,3]
[347288329,1735660259874,-510.41,0.00019726,3]
[347288330,1735660259885,-500.0,0.00019726,3]
[347288331,1735660259894,-500.0,0.00019726,3]
[347288332,1735660259903,-500.0,0.00019726,3]
[347288333,1735660259912,-250.39635654,0.00019726,3]
[347288334,1735660259923,-500.0,0.00019726,3]
[347288335,1735660259933,-513.21159013,0.00019726,3]
[347288336,1735660259942,-561.50804323,0.00019726,3]
[347288337,1735660259952,-500.0,0.00019726,3]
[347288338,1735660259962,-500.0,0.00019726,3]
[347288339,1735660259971,-500.0,0.00019726,3]
[347288340,1735660259981,-500.0,0.00019726,3]
[347288341,1735660259993,-500.0,0.00019726,3]
[347288342,1735660260002,-500.0,0.00019726,3]
[347288343,1735660260012,-500.0,0.00019726,2]
[347288344,1735660260023,-504.70337052,0.00019726,3]
[347288345,1735660260032,-500.0,0.00019726,3]
[347288346,1735660260042,-500.0,0.00019726,3]
[347288347,1735660260051,-500.0,0.00019726,3]
[347288348,1735660260060,-500.0,0.00019726,3]
[347288349,1735660260070,-501.81741579,0.00019726,3]
[347288350,1735660260079,-500.0,0.00019726,3]
[347288351,1735660260089,-500.0,0.00019726,3]
[347288352,1735660260098,-512.47375361,0.00019726,3]
[347288353,1735660260108,-569.23610051,0.00019726,3]
[347288354,1735660260117,-500.0,0.00019726,3]
[347288355,1735660260127,-500.0,0.00019726,3]
[347288356,1735660260138,-500.0,0.00019726,3]
[347288357,1735660260148,-559.91,0.00019726,3]
[347288358,1735660260158,-500.0,0.00019726,3]
[347288359,1735660260167,-500.0,0.00019726,3]
[347288360,1735660260177,-500.0,0.00019726,3]
[347288361,1735660260186,-500.0,0.00019726,3]
[347288362,1735660260196,-1199.49,0.00019726,3]
[347288363,1735660260206,-500.0,0.00019726,3]
[347288364,1735660260215,-429.78785873,0.00019726,3]
[347288365,1735660260224,-505.62603742,0.00019726,3]
[347288366,1735660260233,-500.0,0.00019726,3]
[347288367,1735660260243,-505.69094441,0.00019726,3]
[347288368,1735660260252,-500.0,0.00019726,3]
[347288369,1735660260261,-619.61520779,0.00019726,3]
[347288370,1735660260271,-500.0,0.00019726,3]
[347288371,1735660260280,-500.0,0.00019726,3]
[347288372,1735660260290,-503.05622436,0.00019726,3]
[347288373,1735660260299,-502.95021912,0.00019726,3]
[347288374,1735660260308,-500.0,0.00019726,3]
[347288375,1735660260317,-500.0,0.00019726,3]
[347288376,1735660260327,-510.98318948,0.00019726,3]
[347288377,1735660260336,-500.0,0.00019726,3]
[347288378,1735660260345,-500.0,0.00019726,3]
[347288379,1735660260354,-500.0,0.00019726,3]
[347288380,1735660260364,-500.0,0.00019726,3]
[347288381,1735660260374,-500.0,0.00019726,3]
[347288382,1735660260383,-500.0,0.00019726,3]
[347288383,1735660260393,-500.0,0.00019726,3]
[347288384,1735660260403,-500.0,0.00019726,3]
[347288385,1735660260412,-633.62,0.00019726,3]
[347288386,1735660260421,-505.27406497,0.00019726,3]
[347288387,1735660260431,-1061.86,0.00019726,3]
[347288388,1735660260439,-500.0,0.00019726,3]
[347288389,1735660260449,-500.0,0.00019726,3]
[347288390,1735660260458,-1512.78,0.00019726,3]
[347288391,1735660260467,-500.0,0.00019726,3]
[347288392,1735660260476,-500.0,0.00019726,3]
[347288393,1735660260486,-500.0,0.00019726,3]
[347288394,1735660260495,-500.0,0.00019726,3]
[347288395,1735660260505,-500.0,0.00019726,3]
[347288396,1735660260514,-500.0,0.00019726,3]
[347288397,1735660260523,-500.0,0.00019726,3]
[347288398,1735660260532,-500.0,0.00019726,3]
[347288399,1735660260543,-500.0,0.00019726,3]
[347288400,1735660260552,-504.24413606,0.00019726,3]
[347288401,1735660260562,-500.0,0.00019726,3]
[347288402,1735660260571,-509.64465727,0.00019726,3]
[347288403,1735660260580,-500.0,0.00019726,3]
[347288404,1735660260589,-500.0,0.00019726,3]
[347288405,1735660260598,-723.06,0.00019726,3]
[347288406,1735660260607,-500.0,0.00019726,3]
[347288407,1735660260616,-500.0,0.00019726,3]
[347288408,1735660260626,-500.0,0.00019726,3]
[347288409,1735660260637,-500.0,0.00019726,3]
[347288410,1735660260646,-500.0,0.00019726,3]
[347288411,1735660260656,-500.0,0.00019726,3]
[347288412,1735660260666,-624.68,0.00019726,3]
[347288413,1735660260675,-500.0,0.00019726,3]
[347288414,1735660260684,-500.0,0.00019726,3]
[347288415,1735660260694,-500.0,0.00019726,3]
[347288416,1735660260703,-500.0,0.00019726,3]
[347288417,1735660260712,-500.0,0.00019726,3]
[347288418,1735660260722,-500.0,0.00019726,3]
[347288419,1735660260731,-1354.41,0.00019726,3]
[347288420,1735660260741,-500.0,0.00019726,3]
[347288421,1735660260750,-500.0,0.00019726,3]
[347288422,1735660260760,-500.0,0.00019726,3]
[347288423,1735660260769,-342.940949,0.00019726,3]
[347288424,1735660260778,-502.20252071,0.00019726,3]
[347288425,1735660260787,-500.0,0.00019726,3]
[347288426,1735660260797,-542.03052312,0.00019726,3]
[347288427,1735660260806,-500.0,0.00019726,3]
[347288428,1735660260815,-467.03768174,0.00019726,3]
[347288429,1735660260824,-500.0,0.00019726,3]
[347288430,1735660260834,-950.79,0.00019726,3]
[347288431,1735660260843,-389.80150154,0.00019726,3]
[347288432,1735660260852,-500.0,0.00019726,3]
[347288433,1735660260861,-500.0,0.00019726,3]
[347288434,1735660260871,-500.0,0.00019726,3]
[347288435,1735660260880,-292.61323501,0.00019726,3]
[347288436,1735660260892,-249.14742801,0.00019726,3]
[347288437,1735660260901,-501.38835104,0.00019726,3]
[347288438,1735660260910,-500.0,0.00019726,3]
[347288439,1735660260920,-543.3,0.00019726,3]
[347288440,1735660260929,-505.19449326,0.00019726,3]
[347288441,1735660260938,-500.0,0.00019726,3]
[347288442,1735660260947,-500.0,0.00019726,3]
[347288443,1735660260956,-500.0,0.00019726,3]
[347288444,1735660260966,-500.0,0.00019726,3]
[347288445,1735660260975,-493.75672501,0.00019726,3]
[347288446,1735660260987,-721.83,0.00019726,3]
[347288447,1735660260997,-500.0,0.00019726,3]
[347288448,1735660261006,-3940.0,0.00019726,3]
[347288449,1735660261015,-500.0,0.00019726,3]
[347288450,1735660261026,-500.0,0.00019726,3]
[347288451,1735660261035,-500.0,0.00019726,3]
[347288452,1735660261045,-1349.49,0.00019726,3]
[347288453,1735660261146,-500.0,0.00019726,3]
[347288454,1735660261157,-500.0,0.00019726,3]
[347288455,1735660261166,-516.51065407,0.00019726,3]
[347288456,1735660261176,-500.0,0.00019726,3]
[347288457,1735660261185,-500.0,0.00019726,3]
[347288458,1735660261195,-500.0,0.00019726,3]
[347288459,1735660261204,-2562.65,0.00019726,3]
[347288460,1735660261214,-500.0,0.00019726,3]
[347288461,1735660261223,-500.0,0.00019726,3]
[347288462,1735660261232,-500.0,0.00019726,3]
[347288463,1735660261242,-500.0,0.00019726,3]
[347288464,1735660261251,-500.0,0.00019726,3]
[347288465,1735660261261,-1941.04,0.00019726,3]
[347288466,1735660261270,-500.0,0.00019726,3]
[347288467,1735660261280,-500.0,0.00019726,3]
[347288468,1735660261290,-500.0,0.00019726,3]
[347288469,1735660261299,-537.25,0.00019726,3]
[347288470,1735660261308,-500.0,0.00019726,3]
[347288471,1735660261317,-500.0,0.00019726,3]
[347288472,1735660261326,-552.71222118,0.00019726,3]
[347288473,1735660261335,-500.0,0.00019726,3]
[347288474,1735660261344,-500.0,0.00019726,3]
[347288475,1735660261353,-600.19,0.00019726,3]
[347288476,1735660261362,-500.0,0.00019726,3]
[347288477,1735660261372,-1120.49,0.00019726,3]
[347288478,1735660261381,-500.0,0.00019726,3]
[347288479,1735660261391,-500.0,0.00019726,3]
[347288480,1735660261401,-1826.55,0.00019726,3]
[347288481,1735660261410,-531.95,0.00019726,3]
[347288482,1735660261419,-500.0,0.00019726,3]
[347288483,1735660261428,-500.0,0.00019726,3]
[347288484,1735660261437,-500.0,0.00019726,3]
[347288485,1735660261446,-500.0,0.00019726,3]
[347288486,1735660261455,-500.0,0.00019726,3]
[347288487,1735660261465,-505.32491721,0.00019726,3]
[347288488,1735660261474,-500.0,0.00019726,3]
[347288489,1735660261484,-500.0,0.00019726,3]
[347288490,1735660261493,-500.0,0.00019726,3]
[347288491,1735660261502,-500.0,0.00019726,3]
[347288492,1735660261511,-592.37022772,0.00019726,3]
[347288493,1735660261520,-500.0,0.00019726,3]
[347288494,1735660261529,-811.43,0.00019726,3]
[347288495,1735660261538,-500.0,0.00019726,3]
[347288496,1735660261547,-500.0,0.00019726,3]
[347288497,1735660261556,-500.0,0.00019726,3]
[347288498,1735660261566,-500.0,0.00019726,3]
[347288499,1735660261575,-1242.55,0.00019726,3]
[347288500,1735660261584,-500.0,0.00019726,3]
[347288501,1735660261593,-500.0,0.00019726,3]
[347288502,1735660261602,-500.0,0.00019726,3]
[347288503,1735660261611,-503.33459581,0.00019726,3]
[347288504,1735660261620,-500.0,0.00019726,3]
[347288505,1735660261630,-500.0,0.00019726,3]
[347288506,1735660261639,-790.18,0.00019726,3]
[347288507,1735660261648,-500.0,0.00019726,3]
[347288508,1735660261658,-500.0,0.00019726,3]
[347288509,1735660261668,-1172.4,0.00019726,3]
[347288510,1735660261676,-500.0,0.00019726,3]
[347288511,1735660261686,-501.46942713,0.00019726,2]
[347288512,1735660261695,-500.0,0.00019726,3]
[347288513,1735660261704,-499.0,0.00019726,3]
[347288514,1735660261713,-500.0,0.00019726,3]
[347288515,1735660261722,-1050.61,0.00019726,3]
[347288516,1735660261731,-500.0,0.00019726,3]
[347288517,1735660261740,-4345.25,0.00019726,3]
[347288518,1735660261749,-500.0,0.00019726,3]
[347288519,1735660261758,-500.0,0.00019726,3]
[347288520,1735660261768,-541.7928489,0.00019726,3]
[347288521,1735660261778,-500.0,0.00019726,3]
[347288522,1735660261787,-500.0,0.00019726,3]
[347288523,1735660261797,-169.55554568,0.00019726,3]
[347288524,1735660261806,-500.0,0.00019726,3]
[347288525,1735660261815,-507.59,0.00019726,3]
[347288526,1735660261824,-541.34124789,0.00019726,3]
[347288527,1735660261833,-1284.55,0.00019726,3]
[347288528,1735660261842,-500.0,0.00019726,3]
[347288529,1735660261851,-500.0,0.00019726,3]
[347288530,1735660261861,-1879.54,0.00019726,3]
[347288531,1735660261870,-821.53,0.00019726,3]
[347288532,1735660261879,-500.0,0.00019726,3]
[347288533,1735660261888,-500.0,0.00019726,3]
[347288534,1735660261897,-500.0,0.00019726,3]
[347288535,1735660261906,-500.0,0.00019726,3]
[347288536,1735660261916,-1176.9,0.00019726,3]
[347288537,1735660261926,-500.0,0.00019726,3]
[347288538,1735660261935,-498.0045934,0.00019726,3]
[347288539,1735660261944,-500.0,0.00019726,3]
[347288540,1735660261954,-500.0,0.00019726,3]
[347288541,1735660261963,-500.0,0.00019726,3]
[347288542,1735660261973,-500.0,0.00019726,3]
[347288543,1735660261987,-500.0,0.00019726,3]
[347288544,1735660262003,-8162.72,0.00019726,3]
[347288545,1735660262013,-500.0,0.00019726,3]
[347288546,1735660262024,-500.0,0.00019726,3]
[347288547,1735660262034,-500.0,0.00019726,3]
[347288548,1735660262044,-500.0,0.00019726,3]
[347288549,1735660262053,-1128.39,0.00019726,3]
[347288550,1735660262062,-692.65,0.00019726,3]
[347288551,1735660262071,-500.0,0.00019726,3]
[347288552,1735660262080,-2059.07,0.00019726,3]
[347288553,1735660262089,-500.0,0.00019726,3]
[347288554,1735660262098,-589.85736541,0.00019726,3]
[347288555,1735660262107,-500.0,0.00019726,3]
[347288556,1735660262117,-571.63,0.00019726,3]
[347288557,1735660262126,-929.29,0.00019726,3]
[347288558,1735660262135,-500.0,0.00019726,3]
[347288559,1735660262146,-500.0,0.00019726,3]
[347288560,1735660262155,-500.0,0.00019726,3]
[347288561,1735660262164,-500.0,0.00019726,3]
[347288562,1735660262173,-500.0,0.00019726,3]
[347288563,1735660262183,-500.0,0.00019726,3]
[347288564,1735660262192,-2519.84,0.00019726,3]
[347288565,1735660262202,-500.0,0.00019726,3]
[347288566,1735660262211,-500.0,0.00019726,3]
[347288567,1735660262220,-500.0,0.00019726,3]
[347288568,1735660262229,-913.25,0.00019726,3]
[347288569,1735660262239,-1045.1,0.00019726,3]
[347288570,1735660262248,-979.78,0.00019726,3]
[347288571,1735660262258,-319.04036244,0.00019726,3]
[347288572,1735660262268,-699.87,0.00019726,3]
[347288573,1735660262277,-500.0,0.00019726,3]
[347288574,1735660262286,-500.0,0.00019726,3]
[347288575,1735660262295,-500.0,0.00019726,3]
[347288576,1735660262305,-500.0,0.00019726,3]
[347288577,1735660262314,-551.92103526,0.00019726,3]
[347288578,1735660262324,-500.0,0.00019726,3]
[347288579,1735660262332,-2522.28,0.00019726,3]
[347288580,1735660262341,-500.0,0.00019726,3]
[347288581,1735660262350,-500.0,0.00019726,3]
[347288582,1735660262360,-500.0,0.00019726,3]
[347288583,1735660262369,-500.0,0.00019726,3]
[347288584,1735660262378,-500.0,0.00019726,3]
[347288585,1735660262387,-500.0,0.00019726,3]
[347288586,1735660262398,-500.0,0.00019726,3]
[347288587,1735660262407,-506.72,0.00019726,3]
[347288588,1735660262416,-2127.13,0.00019726,3]
[347288589,1735660262425,-500.0,0.00019726,3]
[347288590,1735660262434,-500.0,0.00019726,3]
[347288591,1735660262443,-565.86,0.00019726,3]
[347288592,1735660262453,-500.0,0.00019726,3]
[347288593,1735660262462,-61924.25,0.00019726,3]
[347288594,1735660262471,-500.0,0.00019726,3]
[347288595,1735660262480,-500.0,0.00019726,3]
[347288596,1735660262489,-1205.54,0.00019726,3]
[347288597,1735660262498,-500.0,0.00019726,3]
[347288598,1735660262507,-501.37393439,0.00019726,3]
[347288599,1735660262516,-500.0,0.00019726,3]
[347288600,1735660262526,-1469.99,0.00019726,3]
[347288601,1735660262535,-1260.5,0.00019726,3]
[347288602,1735660262544,-757.89,0.00019726,3]
[347288603,1735660262553,-500.0,0.00019726,3]
[347288604,1735660262563,-500.0,0.00019726,3]
[347288605,1735660262572,-1329.64802821,0.00019726,3]
[347288606,1735660262853,-157.15197179,0.00019726,3]
[347288607,1735660262864,-500.0,0.00019726,3]
[347288608,1735660262873,-500.0,0.00019726,3]
[347288609,1735660262883,-501.6188141,0.00019726,3]
[347288610,1735660262895,-1196.79,0.00019726,3]
[347288611,1735660262904,-500.0,0.00019726,3]
[347288612,1735660262913,-7785.69,0.00019726,3]
[347288613,1735660262922,-500.0,0.00019726,3]
[347288614,1735660262931,-1083.01,0.00019726,3]
[347288615,1735660262940,-500.0,0.00019726,2]
[347288616,1735660262950,-1435.65,0.00019726,3]
[347288617,1735660262960,-500.0,0.00019726,3]
[347288618,1735660262969,-500.0,0.00019726,3]
[347288619,1735660262978,-500.0,0.00019726,3]
[347288620,1735660262990,-500.0,0.00019726,3]
[347288621,1735660262999,-500.0,0.00019726,3]
[347288622,1735660263008,-1716.68,0.00019726,3]
[347288623,1735660263018,-570.7,0.00019726,3]
[347288624,1735660263027,-500.0,0.00019726,3]
[347288625,1735660263037,-500.0,0.00019726,3]
[347288626,1735660263047,-872.43,0.00019726,3]
[347288627,1735660263056,-500.0,0.00019726,3]
[347288628,1735660263066,-500.0,0.00019726,3]
[347288629,1735660263077,-568.02,0.00019726,3]
[347288630,1735660263087,-500.0,0.00019726,3]
[347288631,1735660263097,-500.0,0.00019726,3]
[347288632,1735660263107,-500.0,0.00019726,3]
[347288633,1735660263117,-500.0,0.00019726,3]
[347288634,1735660263126,-500.0,0.00019726,3]
[347288635,1735660263135,-500.0,0.00019726,3]
[347288636,1735660263147,-500.0,0.00019726,3]
[347288637,1735660263157,-500.0,0.00019726,3]
[347288638,1735660263167,-122.85033764,0.00019726,3]
[347288639,1735660263179,-377.14966236,0.00019726,3]
[347288640,1735660263188,-500.0,0.00019726,3]
[347288641,1735660263198,-500.0,0.00019726,3]
[347288642,1735660263207,-500.0,0.00019726,3]
[347288643,1735660263217,-162.66582664,0.00019726,3]
[347288644,1735660263509,-120.42504694,0.00019178,2]
[347288645,1735660265767,-379.57495306,0.00019178,2]
[347288646,1735660265776,-500.0,0.00019178,2]
[347288647,1735660265785,-501.33209983,0.00019452,3]
[347288648,1735660265795,-345.86764476,0.00019726,3]
[347288649,1735660265804,-961.56,0.00019726,3]
[347288650,1735660265813,-506.56616542,0.00019726,3]
[347288651,1735660265823,-7852.50907569,0.00019726,3]
[347288652,1735660266119,-500.0,0.00019178,2]
[347288653,1735660266130,-5393.27092431,0.00019726,3]
[347288654,1735660266139,-610.54,0.00019726,3]
[347288655,1735660266152,-11531.21,0.00019726,3]
[347288656,1735660266161,-506.41072108,0.00019726,3]
[347288657,1735660266170,-500.0,0.00019726,3]
[347288658,1735660266179,-5286.11,0.00019726,3]
[347288659,1735660266188,-502.58385214,0.00019726,3]
[347288660,1735660266197,-500.0,0.00019726,3]
[347288661,1735660266206,-500.0,0.00019726,3]
[347288662,1735660266215,-500.0,0.00019726,3]
[347288663,1735660266224,-500.0,0.00019726,3]
[347288664,1735660266234,-500.0,0.00019726,3]
[347288665,1735660266243,-500.0,0.00019726,3]
[347288666,1735660266252,-4022.65,0.00019726,3]
[347288667,1735660266262,-1018.11,0.00019726,3]
[347288668,1735660266271,-503.68849973,0.00019726,3]
[347288669,1735660266280,-500.0,0.00019726,3]
[347288670,1735660266289,-500.0,0.00019726,3]
[347288671,1735660266298,-500.0,0.00019726,3]
[347288672,1735660266307,-243.93811004,0.00019726,3]
[347288673,1735660266317,-592.91,0.00019726,3]
[347288674,1735660266327,-289.33201569,0.00019726,3]
[347288675,1735660266336,-472.78963275,0.00019726,3]
[347288676,1735660266348,-27.21036725,0.00019726,3]
[347288677,1735660266357,-445.37963275,0.00019726,3]